fUST/lending_fUST_20250411
["ID","MTS","AMOUNT","RATE_DAILY","PERIOD"]
[357693190,1744332740553,-1500.0,0.00032471,5]
[357693191,1744332740563,-575.20578873,0.00032471,5]
[357693192,1744332740574,-1500.0,0.00032471,5]
[357693193,1744332740584,-1001.91988381,0.00032471,5]
[357693194,1744332740594,-504.64297382,0.00032471,5]
[357693195,1744332740604,-1500.0,0.00032471,5]
[357693196,1744332740614,-383.52439676,0.00032471,5]
[357693197,1744332740624,-542.2813393,0.00032471,5]
[357693198,1744332740633,-1500.0,0.00032471,5]
[357693199,1744332740643,-1500.0,0.00032471,5]
[357693200,1744332740652,-1503.56437602,0.00032471,5]
[357693201,1744332740662,-2300.0,0.00032471,7]
[357693202,1744332740674,-500.0,0.00032603,7]
[357693203,1744332740686,-1000.0,0.00032609,7]
[357693204,1744332740696,-4240.20725237,0.00032622,7]
[357693205,1744332740706,-1000.0,0.00032625,7]
[357693206,1744332740716,-500.0,0.00032658,7]
[357693207,1744332740727,-2300.0,0.00032687,7]
[357693208,1744332740738,-4113.65299159,0.00032691,7]
[357693209,1744332740753,-200.0,0.00032696,120]
[357693210,1744332740763,-1000.0,0.00032699,7]
[357693211,1744332740772,-500.0,0.000327,7]
[357693212,1744332740782,-1326.38678784,0.00032748,7]
[357693213,1744332740792,-700.14397765,0.00032792,7]
[357693214,1744332740802,-309.29654756,0.00032856,2]
[357693215,1744332740813,-300.0,0.00032876,30]
[357693216,1744332740824,-300.0,0.00032876,30]
[357693217,1744332740834,-300.0,0.00032876,30]
[357693218,1744332740845,-300.0,0.00032876,30]
[357693219,1744332740855,-300.0,0.00032876,30]
[357693220,1744332740865,-300.0,0.00032876,30]
[357693221,1744332740875,-300.0,0.00032876,30]
[357693222,1744332740885,-300.0,0.00032876,30]
[357693223,1744332740895,-300.0,0.00032876,30]
[357693224,1744332740905,-300.0,0.00032876,30]
[357693225,1744332740915,-300.0,0.00032876,30]
[357693226,1744332740925,-300.0,0.00032876,30]
[357693227,1744332740935,-300.0,0.00032876,30]
[357693228,1744332740945,-300.0,0.00032876,30]
[357693229,1744332740955,-300.0,0.00032876,30]
[357693230,1744332740965,-300.0,0.00032876,30]
[357693231,1744332740975,-300.0,0.00032876,30]
[357693232,1744332740984,-300.0,0.00032876,30]
[357693233,1744332740994,-300.0,0.00032876,30]
[357693234,1744332741004,-300.0,0.00032876,30]
[357693235,1744332741014,-300.0,0.00032876,30]
[357693236,1744332741025,-316.19180622,0.00032876,30]
[357693237,1744332741035,-490.85535262,0.00032876,2]
[357693238,1744332741045,-359.12025557,0.00032876,2]
[357693239,1744332741055,-289.35845155,0.00032876,2]
[357693240,1744332741064,-500.0,0.00032876,2]
[357693241,1744332741075,-442.58756977,0.00032876,2]
[357693242,1744332741085,-587.51597938,0.00032876,2]
[357693243,1744332741096,-500.0,0.00032876,2]
[357693244,1744332741105,-500.0,0.00032877,2]
[357693245,1744332741115,-500.0,0.00032877,2]
[357693246,1744332741126,-57357.7695912,0.00032877,120]
[357693247,1744332741136,-151.0,0.00032877,14]
[357693248,1744332741146,-155.837248,0.00032877,14]
[357693249,1744332741156,-7276.64,0.000329,30]
[357693250,1744332741166,-10909.84,0.000329,30]
[357693251,1744332741176,-448804.67,0.000329,30]
[357693252,1744332741185,-12156.42,0.000329,30]
[357693253,1744332741195,-1361.42,0.000329,7]
[357693254,1744332741205,-200.0,0.00032909,120]
[357693255,1744332741215,-200.0,0.00032994,120]
[357693256,1744332741225,-202.0,0.00033,14]
[357693257,1744332741235,-10050.0,0.00033,120]
[357693258,1744332741245,-1752.47100648,0.00033,120]
[357693259,1744332741255,-267.0,0.00033,2]
[357693260,1744332741265,-267.0,0.00033,2]
[357693261,1744332741274,-5000.0,0.00033204,2]
[357693262,1744332741284,-151.0,0.0003334,2]
[357693263,1744332741294,-1000.0,0.00033417,106]
[357693264,1744332741303,-7276.64,0.000335,30]
[357693265,1744332741313,-10909.84,0.000335,30]
[357693266,1744332741324,-448804.67,0.000335,30]
[357693267,1744332741334,-12156.42,0.000335,30]
[357693268,1744332741343,-1361.42,0.000336,7]
[357693269,1744332741353,-200.0,0.00033652,120]
[357693270,1744332741362,-200.0,0.00033833,120]
[357693271,1744332741372,-1693.26782637,0.000339,60]
[357693272,1744332741381,-200.0,0.00034,120]
[357693273,1744332741391,-1000.0,0.00034,2]
[357693274,1744332741402,-535.8727748,0.00034,7]
[357693275,1744332741412,-7276.64,0.000341,30]
[357693276,1744332741422,-10909.84,0.000341,30]
[357693277,1744332741431,-448804.67,0.000341,30]
[357693278,1744332741441,-12156.42,0.000341,30]
[357693279,1744332741451,-1361.42,0.000341,7]
[357693280,1744332741461,-1801.49,0.000341,14]
[357693281,1744332741471,-400.0,0.000342,2]
[357693282,1744332741481,-320.74051982,0.00034225,2]
[357693283,1744332741490,-500.0,0.00034302,60]
[357693284,1744332741501,-11575.55449775,0.00034402,2]
[357693285,1744332741511,-7276.64,0.000347,30]
[357693286,1744332741520,-200.0,0.0003475,40]
[357693287,1744332741530,-1515.59150733,0.00034796,2]
[357693288,1744332741539,-10909.84,0.000348,30]
[357693289,1744332741549,-448804.67,0.000348,30]
[357693290,1744332741559,-1361.42,0.000348,7]
[357693291,1744332741569,-200.0,0.00034902,120]
[357693292,1744332741579,-200.0,0.00034933,120]
[357693293,1744332741589,-8280.47486315,0.0003499,30]
[357693294,1744332741599,-1012.74083651,0.00035,2]
[357693295,1744332741609,-176534.70186117,0.00035,7]
[357693296,1744332741619,-200.35928638,0.00035,2]
[357693297,1744332741629,-61600.04,0.00035,30]
[357693298,1744332741639,-5124.87672319,0.00035,120]
[357693299,1744332741648,-12015.35300199,0.00035,15]
[357693300,1744332741658,-721.67230474,0.00035,120]
[357693301,1744332741670,-10568.20539232,0.00035,2]
[357693302,1744332741681,-2749.72339049,0.00035,7]
[357693303,1744332741691,-500.0,0.00035,120]
[357693304,1744332741700,-500.0,0.00035,120]
[357693305,1744332741710,-2042.0,0.00035,15]
[357693306,1744332741721,-38372.21822029,0.00035,30]
[357693307,1744332741730,-400.0055,0.00035,5]
[357693308,1744332741739,-400.0055,0.00035,5]
[357693309,1744332741748,-550.0,0.00035,15]
[357693310,1744332741759,-1009.57,0.00035,120]
[357693311,1744332741769,-3210.0773499,0.00035,30]
[357693312,1744332741779,-512.0,0.00035,30]
[357693313,1744332741788,-3577.03043776,0.00035068,30]
[357693314,1744332741798,-500.0,0.00035398,60]
[357693315,1744332741808,-200.0,0.00035458,120]
[357693316,1744332741818,-332.60791905,0.00035594,2]
[357693317,1744332741830,-1541.22,0.00035616,2]
[357693318,1744332741840,-1541.22,0.00035616,2]
[357693319,1744332741850,-1541.22,0.00035616,2]
[357693320,1744332741860,-1541.22,0.00035616,2]
[357693321,1744332741870,-1541.22,0.00035616,2]
[357693322,1744332741879,-1541.22,0.00035616,2]
[357693323,1744332741889,-1541.22,0.00035616,2]
[357693324,1744332741898,-1541.22,0.00035616,2]
[357693325,1744332741907,-1541.22,0.00035616,2]
[357693326,1744332741916,-1541.22,0.00035616,2]
[357693327,1744332741926,-1541.22,0.00035616,2]
[357693328,1744332741936,-1541.22,0.00035616,2]
[357693329,1744332741946,-1541.22,0.00035616,2]
[357693330,1744332741956,-1541.22,0.00035616,2]
[357693331,1744332741966,-1541.22,0.00035616,2]
[357693332,1744332741976,-1541.22,0.00035616,2]
[357693333,1744332741985,-1541.22,0.00035616,2]
[357693334,1744332741996,-1541.22,0.00035616,2]
[357693335,1744332742006,-1541.22,0.00035616,2]
[357693336,1744332742016,-1541.22,0.00035616,2]
[357693337,1744332742026,-1541.22,0.00035616,2]
[357693338,1744332742036,-1541.22,0.00035616,2]
[357693339,1744332742046,-1541.22,0.00035616,2]
[357693340,1744332742056,-1541.24044727,0.00035616,2]
[357693341,1744332742066,-436.01492018,0.00035616,7]
[357693342,1744332742076,-500.0,0.00035616,7]
[357693343,1744332742086,-517.36814708,0.00035616,7]
[357693344,1744332742095,-1000.0,0.00035813,107]
[357693345,1744332742105,-200.0,0.00035876,120]
[357693346,1744332742114,-1000.0,0.0003589,2]
[357693347,1744332742124,-7749.34479319,0.00036,2]
[357693348,1744332742133,-198828.17346309,0.00036,30]
[357693349,1744332742144,-300.0,0.00036,120]
[357693350,1744332742153,-12156.42,0.00036,30]
[357693351,1744332742163,-4000.0,0.00036,120]
[357693352,1744332742173,-203.64,0.00036,86]
[357693353,1744332742183,-1000.0,0.00036,120]
[357693354,1744332742192,-267.0,0.00036,2]
[357693355,1744332742201,-267.0,0.00036,2]
[357693356,1744332742212,-267.0,0.00036,2]
[357693357,1744332742221,-30232.36112896,0.000362,98]
[357693358,1744332742231,-30232.36112893,0.000362,98]
[357693359,1744332742241,-30232.36112893,0.000362,98]
[357693360,1744332742250,-30232.36112893,0.000362,98]
[357693361,1744332742260,-30232.36112893,0.000362,98]
[357693362,1744332742270,-201.60059336,0.0003621,2]
[357693363,1744332742280,-262.22412722,0.0003624,2]
[357693364,1744332742289,-2795.21236791,0.00036479,7]
[357693365,1744332742299,-149648.09889199,0.00036479,7]
[357693366,1744332742308,-149648.09889199,0.00036479,7]
[357693367,1744332742317,-500.0,0.00036494,60]
[357693368,1744332742330,-650.27891276,0.000365,120]
[357693369,1744332742339,-218.502256,0.0003653,120]
[357693370,1744332742349,-5000.0,0.00036538,2]
[357693371,1744332742359,-200.0,0.00036604,120]
[357693372,1744332742368,-200.0,0.00036708,120]
[357693373,1744332742377,-4763.51081646,0.00036898,120]
[357693374,1744332742387,-412.0,0.00036952,2]
[357693375,1744332742397,-344.91441206,0.00036963,2]
[357693376,1744332742406,-200.0,0.00036998,120]
[357693377,1744332742416,-412.0,0.00037,2]
[357693378,1744332742425,-361.52194769,0.00037096,120]
[357693379,1744332742435,-200.0,0.00037102,120]
[357693380,1744332742444,-200.0,0.0003718,47]
[357693381,1744332742454,-282.54,0.000372,120]
[357693382,1744332742464,-412.0,0.00037226,2]
[357693383,1744332742474,-200.0,0.00037299,120]
[357693384,1744332742483,-200.0,0.00037376,120]
[357693385,1744332742493,-200.0,0.00037381,120]
[357693386,1744332742502,-412.0,0.000375,2]
[357693387,1744332742511,-500.0,0.0003759,60]
[357693388,1744332742521,-412.0,0.00037774,2]
[357693389,1744332742530,-200.0,0.00037799,120]
[357693390,1744332742540,-1005.7341008,0.000378,2]
[357693391,1744332742550,-500.0,0.00038,5]
[357693392,1744332742559,-219.0,0.00038,120]
[357693393,1744332742569,-500.0,0.00038,120]
[357693394,1744332742580,-1361.42,0.00038,7]
[357693395,1744332742590,-2795.21236791,0.00038019,7]
[357693396,1744332742600,-200.0,0.00038114,120]
[357693397,1744332742609,-1999.9,0.00038209,108]
[357693398,1744332742618,-200.0,0.00038228,120]
[357693399,1744332742628,-500.0,0.000383,7]
[357693400,1744332742637,-357.6762453,0.00038332,2]
[357693401,1744332742647,-1000.0,0.00038356,90]
[357693402,1744332742657,-1043.31655045,0.00038356,90]
[357693403,1744332742667,-166.0,0.00038356,2]
[357693404,1744332742678,-166.98533295,0.00038356,2]
[357693405,1744332742688,-210.45928108,0.00038356,5]
[357693406,1744332742698,-182.22598784,0.00038356,5]
[357693407,1744332742707,-400.0055,0.00038499,14]
[357693408,1744332742718,-253.6,0.000385,120]
[357693409,1744332742728,-4000.0,0.000385,50]
[357693410,1744332742737,-412.0,0.00038512,14]
[357693411,1744332742749,-200.0,0.00038595,120]
[357693412,1744332742758,-500.0,0.00038686,60]
[357693413,1744332742767,-200.0,0.00038743,120]
[357693414,1744332742776,-200.0,0.00038755,120]
[357693415,1744332742785,-200.0,0.00038804,14]
[357693416,1744332742795,-200.0,0.00038804,14]
[357693417,1744332742804,-200.0,0.00038964,120]
[357693418,1744332742814,-1845.94538158,0.00039,120]
[357693419,1744332742823,-7276.64,0.00039,30]
[357693420,1744332742833,-10909.84,0.00039,30]
[357693421,1744332742929,-448804.67,0.00039,30]
[357693422,1744332742940,-198.0,0.00039,2]
[357693423,1744332742950,-267.0,0.00039,2]
[357693424,1744332742959,-267.0,0.00039,2]
[357693425,1744332742969,-267.0,0.00039,2]
[357693426,1744332742978,-200.0,0.00039425,120]
[357693427,1744332742987,-200.0,0.0003961,53]
[357693428,1744332742996,-370.91026638,0.00039701,2]
[357693429,1744332743006,-351.12065429,0.00039782,60]
[357693430,1744332743015,-152.19232824,0.000398,60]
[357693431,1744332743024,-5000.0,0.000399,120]
[357693432,1744332743033,-200.0,0.00039906,120]
[357693433,1744332743042,-230.0,0.0004,120]
[357693434,1744332743051,-1000.0,0.0004,120]
[357693435,1744332743061,-250000.0,0.0004,7]
[357693436,1744332743070,-3747.0,0.0004,120]
[357693437,1744332743079,-119780.02400224,0.0004,30]
[357693438,1744332743088,-518.10856773,0.0004,120]
[357693439,1744332743098,-892.47698625,0.0004,2]
[357693440,1744332743107,-634915.94882283,0.0004,30]
[357693441,1744332743116,-199.999999,0.0004,120]
[357693442,1744332743126,-419.56135214,0.0004,10]
[357693443,1744332743135,-500.0,0.0004,120]
[357693444,1744332743144,-500.0,0.0004,120]
[357693445,1744332743153,-389.0,0.0004,120]
[357693446,1744332743163,-2000.0,0.0004,120]
[357693447,1744332743172,-5000.0,0.0004,60]
[357693448,1744332743182,-466.58194256,0.0004,120]
[357693449,1744332743191,-300.0,0.0004,14]
[357693450,1744332743201,-4185.71813293,0.0004,3]
[357693451,1744332743210,-729.0,0.0004,120]
[357693452,1744332743220,-41825.45765724,0.0004,3]
[357693453,1744332743229,-28105.83534024,0.0004,15]
[357693454,1744332743239,-50347.58364499,0.0004,120]
[357693455,1744332743248,-159895.65296127,0.0004,60]
[357693456,1744332743257,-114457.92284816,0.0004,120]
[357693457,1744332743266,-583617.02697013,0.0004,30]
[357693458,1744332743276,-419.64641374,0.0004,120]
[357693459,1744332743286,-419.64641374,0.0004,30]
[357693460,1744332743295,-200.0,0.00040425,120]
[357693461,1744332743305,-412.0,0.00040438,14]
[357693462,1744332743315,-250000.0,0.000405,7]
[357693463,1744332743327,-200.0,0.0004057,120]
[357693464,1744332743336,-302.54965967,0.00040658,120]
[357693465,1744332743346,-50000.0,0.0004089,50]
[357693466,1744332743355,-250000.0,0.00041,7]
[357693467,1744332743365,-12950.0,0.00041,120]
[357693468,1744332743374,-12156.42,0.00041,30]
[357693469,1744332743383,-384.63394623,0.0004107,2]
[357693470,1744332743393,-80000.0,0.0004109,50]
[357693471,1744332743402,-500.0,0.00041095,120]
[357693472,1744332743411,-500.0,0.00041095,120]
[357693473,1744332743421,-500.0,0.00041095,120]
[357693474,1744332743430,-500.0,0.00041095,120]
[357693475,1744332743439,-500.0,0.00041095,120]
[357693476,1744332743449,-506.71010028,0.00041095,120]
[357693477,1744332743459,-188.0,0.00041095,120]
[357693478,1744332743469,-188.0,0.00041095,120]
[357693479,1744332743479,-188.0,0.00041095,120]
[357693480,1744332743488,-188.0,0.00041095,120]
[357693481,1744332743497,-188.0,0.00041095,120]
[357693482,1744332743507,-188.0,0.00041095,120]
[357693483,1744332743517,-188.0,0.00041095,120]
[357693484,1744332743526,-188.0,0.00041095,120]
[357693485,1744332743536,-188.0,0.00041095,120]
[357693486,1744332743545,-156.52355306,0.00041095,120]
[357693487,1744332743555,-1000.0,0.00041095,120]
[357693488,1744332743566,-1000.0,0.00041095,120]
[357693489,1744332743577,-509.42014182,0.00041095,120]
[357693490,1744332743586,-2042.6637275,0.00041095,30]
[357693491,1744332743596,-218.502256,0.00041096,120]
[357693492,1744332743606,-500.0,0.00041096,31]
[357693493,1744332743616,-500.0,0.00041096,31]
[357693494,1744332743625,-479.4582785,0.00041096,31]
[357693495,1744332743635,-164.38425317,0.00041096,31]
[357693496,1744332743645,-1000.0,0.00041211,120]
[357693497,1744332743655,-30000.0,0.0004129,30]
[357693498,1744332743666,-200.0,0.00041474,120]
[357693499,1744332743680,-250000.0,0.000415,7]
[357693500,1744332743690,-12381.16,0.000415,120]
[357693501,1744332743700,-50000.0,0.000415,40]
[357693502,1744332743711,-250.0,0.00041644,10]
[357693503,1744332743720,-40000.0,0.0004169,40]
[357693504,1744332743729,-94599.35955997,0.000418,14]
[357693505,1744332743739,-60000.0,0.0004188,50]
[357693506,1744332743749,-9028.0,0.0004197,30]
[357693507,1744332743759,-9028.0,0.0004197,30]
[357693508,1744332743769,-150.5,0.0004197,120]
[357693509,1744332743778,-1155.0,0.0004197,120]
[357693510,1744332743787,-1155.0,0.0004197,120]
[357693511,1744332743796,-9028.0,0.0004198,30]
[357693512,1744332743806,-9028.0,0.0004198,30]
[357693513,1744332743816,-9028.0,0.0004198,30]
[357693514,1744332743827,-9029.25,0.0004198,30]
[357693515,1744332743837,-150.5,0.0004198,120]
[357693516,1744332743847,-270.91,0.0004198,120]
[357693517,1744332743856,-1155.0,0.0004198,120]
[357693518,1744332743865,-1155.0,0.0004198,120]
[357693519,1744332743874,-1155.0,0.0004198,120]
[357693520,1744332743883,-1164.07,0.0004198,120]
[357693521,1744332743892,-9028.0,0.0004199,30]
[357693522,1744332743902,-9028.0,0.0004199,30]
[357693523,1744332743911,-9028.0,0.0004199,30]
[357693524,1744332743920,-9028.0,0.0004199,30]
[357693525,1744332743930,-150.5,0.0004199,120]
[357693526,1744332743939,-150.5,0.0004199,120]
[357693527,1744332743950,-1155.0,0.0004199,120]
[357693528,1744332743959,-1155.0,0.0004199,120]
[357693529,1744332743968,-1155.0,0.0004199,120]
[357693530,1744332743978,-1155.0,0.0004199,120]
[357693531,1744332743987,-250000.0,0.00042,30]
[357693532,1744332743997,-150.0,0.00042,120]
[357693533,1744332744006,-300.0,0.00042,120]
[357693534,1744332744016,-4264.62287534,0.00042,15]
[357693535,1744332744026,-2781.15533192,0.00042,5]
[357693536,1744332744036,-267.0,0.00042,2]
[357693537,1744332744045,-267.0,0.00042,2]
[357693538,1744332744055,-267.0,0.00042,2]
[357693539,1744332744064,-200.0,0.0004204,60]
[357693540,1744332744074,-30000.0,0.000421,40]
[357693541,1744332744084,-437.11514373,0.00042192,10]
[357693542,1744332744094,-412.0,0.00042363,90]
[357693543,1744332744104,-500.0,0.00042418,120]
[357693544,1744332744114,-600.0,0.00042439,2]
[357693545,1744332744123,-200.0,0.000425,120]
[357693546,1744332744133,-250000.0,0.000425,30]
[357693547,1744332744143,-5175.48,0.000425,120]
[357693548,1744332744152,-28361.83,0.000425,120]
[357693549,1744332744162,-500.0,0.00042518,120]
[357693550,1744332744171,-500.0,0.00042618,120]
[357693551,1744332744181,-200.0,0.00042707,120]
[357693552,1744332744190,-500.0,0.00042718,120]
[357693553,1744332744200,-50000.0,0.0004276,40]
[357693554,1744332744210,-500.0,0.00042818,120]
[357693555,1744332744219,-30000.0,0.0004286,40]
[357693556,1744332744228,-500.0,0.00042918,120]
[357693557,1744332744238,-379.67382641,0.00042992,30]
[357693558,1744332744247,-1500.0,0.00043,30]
[357693559,1744332744256,-1500.0,0.00043,30]
[357693560,1744332744266,-1500.0,0.00043,30]
[357693561,1744332744275,-1500.0,0.00043,2]
[357693562,1744332744284,-1500.0,0.00043,2]
[357693563,1744332744293,-1500.0,0.00043,2]
[357693564,1744332744303,-1500.0,0.00043,2]
[357693565,1744332744312,-1725.45,0.00043,2]
[357693566,1744332744321,-1500.0,0.00043,2]
[357693567,1744332744331,-157.92017685,0.00043,120]
[357693568,1744332744341,-250000.0,0.00043,30]
[357693569,1744332744351,-12500.0,0.00043,120]
[357693570,1744332744361,-2795.21236791,0.00043,7]
[357693571,1744332744371,-2795.21236791,0.00043,7]
[357693572,1744332744381,-149648.09889199,0.00043,7]
[357693573,1744332744391,-149648.09889199,0.00043,7]
[357693574,1744332744400,-3418.96245986,0.00043,7]
[357693575,1744332744410,-3418.96245986,0.00043,7]
[357693576,1744332744419,-4056.25,0.00043,7]
[357693577,1744332744429,-4056.25,0.00043,7]
[357693578,1744332744439,-5657.63717585,0.00043,7]
[357693579,1744332744448,-5657.63717585,0.00043,7]
[357693580,1744332744458,-303.10040782,0.00043,7]
[357693581,1744332744468,-303.10040782,0.00043,7]
[357693582,1744332744478,-5290.82769445,0.00043,7]
[357693583,1744332744487,-5290.82769445,0.00043,7]
[357693584,1744332744496,-651.18266044,0.00043,7]
[357693585,1744332744506,-651.18266044,0.00043,7]
[357693586,1744332744515,-3097.73379281,0.00043,7]
[357693587,1744332744525,-3097.73379281,0.00043,7]
[357693588,1744332744534,-2749.72339049,0.00043,7]
[357693589,1744332744544,-2749.72339049,0.00043,7]
[357693590,1744332744553,-2065.42232477,0.00043,7]
[357693591,1744332744563,-2065.42232477,0.00043,7]
[357693592,1744332744572,-26355.08945677,0.00043,15]
[357693593,1744332744583,-11704.96660663,0.00043,7]
[357693594,1744332744592,-11704.96660663,0.00043,7]
[357693595,1744332744601,-378.38240624,0.00043,7]
[357693596,1744332744612,-378.38240624,0.00043,7]
[357693597,1744332744621,-257.08587932,0.00043,120]
[357693598,1744332744631,-600.34068757,0.00043,14]
[357693599,1744332744640,-1361.42,0.00043,30]
[357693600,1744332744650,-2545.14247735,0.00043,7]
[357693601,1744332744660,-2545.14247735,0.00043,7]
[357693602,1744332744670,-12821.87873794,0.00043,7]
[357693603,1744332744683,-32201.44767903,0.00043,7]
[357693604,1744332744694,-32201.44767903,0.00043,7]
[357693605,1744332744703,-200.0,0.0004301,120]
[357693606,1744332744714,-500.0,0.00043018,120]
[357693607,1744332744725,-200.0,0.00043052,120]
[357693608,1744332744735,-200.0,0.00043115,120]
[357693609,1744332744744,-21536.19532987,0.00043115,2]
[357693610,1744332744757,-3854.75158535,0.00043115,2]
[357693611,1744332744767,-699.98949623,0.00043115,2]
[357693612,1744332744777,-1702.82636275,0.00043115,2]
[357693613,1744332744787,-646.90277615,0.00043115,2]
[357693614,1744332744797,-1492.22639948,0.00043115,2]
[357693615,1744332744807,-150.10931519,0.00043115,2]
[357693616,1744332744817,-3068.03073445,0.00043115,2]
[357693617,1744332744828,-90629.12325672,0.00043115,2]
[357693618,1744332744837,-20000.0,0.00043115,2]
[357693619,1744332744847,-300.0,0.00043115,2]
[357693620,1744332744856,-804.56261078,0.00043115,2]
[357693621,1744332744866,-253.17196252,0.00043115,2]
[357693622,1744332744875,-294.99259453,0.00043115,2]
[357693623,1744332744885,-817.05704083,0.00043115,2]
[357693624,1744332744894,-324.93159913,0.00043115,2]
[357693625,1744332744904,-1201.69781779,0.00043115,2]
[357693626,1744332744915,-289.99352737,0.00043115,2]
[357693627,1744332744925,-51387.34700787,0.00043115,2]
[357693628,1744332744935,-632.71069118,0.00043115,2]
[357693629,1744332744945,-4180.23086589,0.00043115,2]
[357693630,1744332744956,-155.50636319,0.00043115,2]
[357693631,1744332744966,-6011.94391857,0.00043115,2]
[357693632,1744332744976,-10239.29227216,0.00043115,2]
[357693633,1744332744986,-1001.49111147,0.00043115,2]
[357693634,1744332744996,-6251.9561383,0.00043115,2]
[357693635,1744332745006,-156.51888045,0.00043115,2]
[357693636,1744332745017,-523.08270506,0.00043115,2]
[357693637,1744332745027,-443.14530832,0.00043115,2]
[357693638,1744332745037,-1856.85760447,0.00043115,2]
[357693639,1744332745047,-13690.90326178,0.00043115,2]
[357693640,1744332745057,-504.33825652,0.00043115,2]
[357693641,1744332745068,-1863.36736496,0.00043115,2]
[357693642,1744332745079,-178.00965015,0.00043115,2]
[357693643,1744332745089,-465.05568033,0.00043115,2]
[357693644,1744332745100,-30252.1822255,0.00043115,2]
[357693645,1744332745110,-187.98080482,0.00043115,2]
[357693646,1744332745120,-301.21879957,0.00043115,2]
[357693647,1744332745130,-1387.72224223,0.00043115,2]
[357693648,1744332745140,-582.98033692,0.00043115,2]
[357693649,1744332745151,-5856.31052131,0.00043115,2]
[357693650,1744332745161,-504.36505672,0.00043115,2]
[357693651,1744332745171,-2920.0,0.00043115,2]
[357693652,1744332745182,-1011.73449978,0.00043115,2]
[357693653,1744332745192,-10006.49721037,0.00043115,2]
[357693654,1744332745203,-150.0,0.00043115,2]
[357693655,1744332745214,-150.37942956,0.00043115,7]
[357693656,1744332745226,-852.59,0.00043115,2]
[357693657,1744332745237,-500.0,0.00043115,120]
[357693658,1744332745247,-1000.0,0.00043115,120]
[357693659,1744332745257,-1000.0,0.00043115,120]
[357693660,1744332745268,-1000.0,0.00043115,120]
[357693661,1744332745279,-1000.0,0.00043115,120]
[357693662,1744332745290,-1000.0,0.00043115,120]
[357693663,1744332745300,-1000.0,0.00043115,120]
[357693664,1744332745311,-1000.0,0.00043115,120]
[357693665,1744332745321,-1000.0,0.00043115,120]
[357693666,1744332745334,-1000.0,0.00043115,120]
[357693667,1744332745345,-1000.0,0.00043115,120]
[357693668,1744332745356,-690.65538588,0.00043115,30]
[357693669,1744332745366,-2507.13677133,0.00043115,32]
[357693670,1744332745376,-375.41201531,0.00043115,30]
[357693671,1744332745387,-1103.78536526,0.00043115,60]
[357693672,1744332745397,-584.57233512,0.00043115,30]
[357693673,1744332745407,-182.53253028,0.00043115,120]
[357693674,1744332745417,-928.38908999,0.00043115,120]
[357693675,1744332745427,-161.9530319,0.00043115,30]
[357693676,1744332745437,-570.27955615,0.00043115,30]
[357693677,1744332745448,-1236.83818804,0.00043115,120]
[357693678,1744332745458,-222.5081531,0.00043115,120]
[357693679,1744332745468,-2770.40185249,0.00043115,120]
[357693680,1744332745478,-588.53049651,0.00043115,60]
[357693681,1744332745488,-700.67199654,0.00043115,30]
[357693682,1744332745498,-4877.0,0.00043115,31]
[357693683,1744332745508,-2749.97832736,0.00043115,120]
[357693684,1744332745518,-512.24325343,0.00043115,100]
[357693685,1744332745528,-4802.0,0.00043115,120]
[357693686,1744332745538,-100344.61780732,0.00043115,60]
[357693687,1744332745549,-500.0,0.00043115,120]
[357693688,1744332745560,-500.0,0.00043115,120]
[357693689,1744332745570,-20000.0,0.00043115,40]